bitfinex/quotes_BTCUSD_20250118
["timestamp","ask_amount","ask_price","bid_price","bid_amount"]
[1737202638989,0.07074057,103700.0,103690.0,0.22245649]
[1737202641068,0.16717257,103700.0,103690.0,0.22245649]
[1737202641238,0.07074057,103700.0,103690.0,0.22245649]
[1737202642482,0.16717257,103700.0,103690.0,0.22245649]
[1737202642699,0.0004279,103700.0,103690.0,0.29935649]
[1737202642828,0.07074057,103700.0,103690.0,0.29935649]
[1737202643030,0.16717257,103700.0,103690.0,0.22245649]
[1737202643447,0.07074057,103700.0,103690.0,0.22245649]
[1737202643649,0.16717257,103700.0,103690.0,0.22335466]
[1737202644531,0.16717257,103700.0,103690.0,0.23079466]
[1737202644753,0.16717257,103700.0,103690.0,0.23561597]
[1737202646565,0.16717257,103700.0,103690.0,0.13917497]
[1737202646773,0.16717257,103700.0,103690.0,0.01617497]
[1737202646774,0.33672605,103700.0,103690.0,0.01617497]
[1737202646900,0.35582605,103700.0,103690.0,0.01617497]
[1737202648752,0.35582605,103700.0,103690.0,0.01135366]
[1737202653067,0.28551338,103700.0,103690.0,0.01135366]
[1737202654285,0.35582605,103700.0,103690.0,0.01135366]
[1737202656505,0.26641338,103700.0,103690.0,0.01135366]
[1737202660707,0.0004279,103700.0,103690.0,0.31019466]
[1737202661411,0.07074057,103700.0,103690.0,0.31019466]
[1737202661555,0.0004279,103700.0,103690.0,0.31019466]
[1737202662290,0.0968599,103700.0,103690.0,0.31019466]
[1737202662639,0.0968599,103700.0,103690.0,0.31734398]
[1737202662910,0.16717257,103700.0,103690.0,0.31734398]
[1737202663114,0.16717257,103700.0,103690.0,0.32216529]
[1737202663273,0.0004279,103700.0,103690.0,0.32216529]
[1737202664362,0.0004279,103700.0,103690.0,0.36776529]
[1737202664745,0.07074057,103700.0,103690.0,0.36776529]
[1737202665342,0.0004279,103700.0,103690.0,0.36776529]
[1737202665944,0.07074057,103700.0,103690.0,0.36776529]
[1737202666497,0.07074057,103700.0,103690.0,0.27132429]
[1737202666688,0.23748524,103700.0,103690.0,0.10272429]
[1737202666929,0.33672605,103700.0,103690.0,0.20272429]
[1737202667179,0.26641338,103700.0,103690.0,0.29916529]
[1737202668530,0.0004279,103700.0,103690.0,0.51776529]
[1737202670187,0.0004279,103700.0,103690.0,1.21914468]
[1737202670590,0.0004279,103700.0,103690.0,1.21432337]
[1737202671196,0.0004279,103700.0,103690.0,1.22400231]
[1737202671726,0.0004279,103700.0,103690.0,1.32324312]
[1737202673114,0.0004279,103700.0,103690.0,1.40888874]
[1737202674439,0.0004279,103700.0,103690.0,1.15216305]
[1737202675606,0.0004279,103700.0,103690.0,1.42814309]
[1737202675777,0.0004279,103700.0,103690.0,1.30964793]
[1737202677731,0.0004279,103700.0,103690.0,1.43851415]
[1737202679733,0.0004279,103700.0,103690.0,1.64486089]
[1737202679866,0.0004279,103700.0,103690.0,1.6591738]
[1737202680072,0.0004279,103700.0,103690.0,1.55206787]
[1737202680975,0.0004279,103700.0,103690.0,1.42353723]
[1737202681499,0.0004279,103700.0,103690.0,1.32353723]
[1737202682313,0.0004279,103700.0,103690.0,1.22429642]
[1737202683886,0.0004279,103700.0,103690.0,1.4384265]
[1737202684589,0.10753383,103700.0,103690.0,1.25574756]
[1737202684789,0.10753383,103700.0,103690.0,1.11014756]
[1737202684986,0.10753383,103700.0,103690.0,1.23314756]
[1737202685211,0.20396583,103700.0,103690.0,1.15374756]
[1737202685580,0.10753383,103700.0,103690.0,1.13074756]
[1737202685788,0.20396583,103700.0,103690.0,1.03556879]
[1737202686112,0.30320664,103700.0,103690.0,0.02332421]
[1737202687507,0.30320664,103700.0,103690.0,0.01850298]
[1737202687682,0.30320664,103700.0,103690.0,0.10779466]
[1737202688483,0.10753383,103700.0,103690.0,0.20779466]
[1737202688889,0.20396583,103700.0,103690.0,0.20779466]
[1737202689251,0.10753383,103700.0,103690.0,0.20779466]
[1737202689800,0.20396583,103700.0,103690.0,0.20779466]
[1737202693823,0.0004279,103700.0,103690.0,0.20779466]
[1737202694070,0.0004279,103700.0,103690.0,0.29019466]
[1737202694282,0.10753383,103700.0,103690.0,0.29019466]
[1737202694434,0.20396583,103700.0,103690.0,0.29019466]
[1737202696389,0.10753383,103700.0,103690.0,0.29019466]
[1737202697050,0.0004279,103700.0,103690.0,0.31319466]
[1737202697437,0.0004279,103700.0,103690.0,0.35839466]
[1737202698412,0.0004279,103700.0,103690.0,0.36554398]
[1737202698863,0.0004279,103700.0,103690.0,0.37036521]
[1737202699540,0.0004279,103700.0,103690.0,0.45601724]
[1737202699743,0.0004279,103700.0,103690.0,0.55525805]
[1737202700233,0.0004279,103700.0,103690.0,0.55043682]
[1737202700919,0.0004279,103700.0,103690.0,0.56014969]
[1737202701274,0.0004279,103700.0,103690.0,1.3901542]
[1737202702507,0.0004279,103700.0,103690.0,1.30450217]
[1737202705952,0.0004279,103700.0,103690.0,1.17602412]
[1737202715152,0.0702916,103720.0,103690.0,0.95658312]
[1737202715330,0.0702916,103720.0,103700.0,0.1]
[1737202715653,0.3595356,103720.0,103710.0,0.119422]
[1737202715808,0.3595356,103720.0,103710.0,0.1]
[1737202716017,0.3595356,103720.0,103710.0,0.196422]
[1737202716213,0.3595356,103720.0,103700.0,0.674979]
[1737202716447,0.3595356,103720.0,103710.0,0.196422]
[1737202716606,0.3595356,103720.0,103700.0,0.68575461]
[1737202716807,0.1667086,103720.0,103710.0,0.196422]
[1737202717255,0.1667086,103720.0,103710.0,0.19943749]
[1737202717457,0.0702916,103720.0,103710.0,0.19943749]
[1737202719458,0.0702916,103720.0,103710.0,0.20658681]
[1737202720180,0.33623701,103720.0,103710.0,0.10658681]
[1737202720385,0.0702916,103720.0,103710.0,0.22958681]
[1737202723253,0.1667046,103720.0,103710.0,0.12958681]
[1737202724271,0.26594541,103720.0,103710.0,0.03316481]
[1737202724413,0.33623701,103720.0,103710.0,0.03316481]
[1737202724609,0.33623701,103720.0,103710.0,0.01016481]
[1737202724938,0.33666501,103720.0,103710.0,0.01016481]
[1737202725181,0.33666501,103720.0,103710.0,0.03316481]
[1737202725324,0.33666501,103720.0,103710.0,0.12958681]
[1737202726149,0.26637341,103720.0,103710.0,0.12958681]
[1737202726558,0.26637341,103720.0,103710.0,0.12243749]
[1737202727432,0.000428,103720.0,103710.0,0.22243749]
[1737202727649,0.0707196,103720.0,103710.0,0.30675827]
[1737202737183,0.2374242,103720.0,103710.0,0.30675827]
[1737202737394,0.0707196,103720.0,103710.0,0.30675827]
[1737202738996,0.1671326,103720.0,103710.0,0.30675827]
[1737202739294,0.0707196,103720.0,103710.0,0.30675827]
[1737202743461,0.2374242,103720.0,103710.0,0.20675827]
[1737202744463,0.2374242,103720.0,103710.0,0.11033627]
[1737202744657,0.2374242,103720.0,103710.0,0.03083627]
[1737202745020,0.33666501,103720.0,103710.0,0.03083627]
[1737202745647,0.69445661,103720.0,103710.0,0.00783627]
[1737202745785,0.62416501,103720.0,103710.0,0.00783627]
[1737202746119,0.62416501,103720.0,103710.0,0.00301549]
[1737202746343,0.71062087,103720.0,103710.0,0.00301549]
[1737202747515,0.096422,103710.0,103700.0,0.02787172]
[1737202747705,0.26595441,103710.0,103700.0,0.02787172]
[1737202748142,0.29595441,103710.0,103700.0,0.02787172]
[1737202748539,0.36624601,103710.0,103700.0,0.02787172]
[1737202748737,0.29595441,103710.0,103700.0,0.02787172]
[1737202749129,0.29595441,103710.0,103700.0,0.02606363]
[1737202752046,0.29595441,103710.0,103700.0,0.15086363]
[1737202752454,0.29595441,103710.0,103700.0,0.24729563]
[1737202752669,0.29595441,103710.0,103700.0,0.15086363]
[1737202753366,0.03,103710.0,103700.0,0.34729563]
[1737202753573,0.1002916,103710.0,103700.0,0.34729563]
[1737202754573,0.08688386,103720.0,103710.0,0.297622]
[1737202754770,0.15717546,103720.0,103710.0,0.297622]
[1737202755568,0.15717546,103720.0,103710.0,0.30063534]
[1737202755914,0.1410112,103720.0,103710.0,0.30063534]
[1737202756207,0.2374242,103720.0,103710.0,0.10421334]
[1737202756417,0.2374242,103720.0,103710.0,0.30063534]
[1737202757325,0.1410112,103720.0,103710.0,0.30063534]
[1737202757658,0.0707196,103720.0,103710.0,0.30063534]
[1737202758034,0.0707196,103720.0,103710.0,0.34573534]
[1737202758384,0.000428,103720.0,103710.0,0.34573534]
[1737202758889,0.0707196,103720.0,103710.0,0.34573534]
[1737202759149,0.0706174,103720.0,103710.0,0.34573534]
[1737202759831,0.0706174,103720.0,103710.0,0.24663372]
[1737202760036,0.0706174,103720.0,103710.0,0.34663372]
[1737202762333,0.1670304,103720.0,103710.0,0.34663372]
[1737202762545,0.237322,103720.0,103710.0,0.34663372]
[1737202762741,0.1667046,103720.0,103710.0,0.34663372]
[1737202763118,0.1667046,103720.0,103710.0,0.24663372]
[1737202763319,0.1667046,103720.0,103710.0,0.34663372]
[1737202763533,0.2369962,103720.0,103710.0,0.34663372]
[1737202763755,0.0702916,103720.0,103710.0,0.34663372]
[1737202768445,0.0707194,103730.0,103720.0,0.301013]
[1737202769037,0.0004278,103730.0,103720.0,0.350113]
[1737202770498,0.0004278,103730.0,103720.0,0.43584934]
[1737202771813,0.0004278,103730.0,103720.0,0.88057294]
[1737202772998,0.0004278,103730.0,103720.0,0.43584934]
[1737202774243,0.0004278,103730.0,103720.0,0.57417059]
[1737202775722,0.0004278,103730.0,103720.0,0.83539009]
[1737202775924,8e-07,103730.0,103720.0,0.93539009]
[1737202776124,0.0161224,103740.0,103730.0,0.600104]
[1737202776332,0.0161224,103740.0,103730.0,0.76963641]
[1737202776677,0.0161224,103740.0,103730.0,0.77591641]
[1737202777426,0.0161224,103740.0,103730.0,0.81262757]
[1737202778048,0.0008278,103750.0,103740.0,0.45709676]
[1737202778265,0.0008278,103750.0,103740.0,0.65633757]
[1737202778477,0.0008278,103750.0,103740.0,0.90633757]
[1737202778883,0.0008278,103750.0,103740.0,0.80633757]
[1737202779052,0.0008278,103750.0,103740.0,0.90633757]
[1737202779252,0.00133329,103750.0,103740.0,0.90633757]
[1737202779497,0.00133329,103750.0,103740.0,0.79933481]
[1737202779735,0.00133329,103750.0,103740.0,1.30037181]
[1737202780045,0.00133329,103750.0,103740.0,0.979031]
[1737202780454,0.00133329,103750.0,103740.0,1.002031]
[1737202780957,0.00133329,103750.0,103740.0,0.300994]
[1737202781154,0.00133329,103750.0,103740.0,0.450994]
[1737202783892,0.00133329,103750.0,103740.0,0.59713481]
[1737202784061,2.9e-07,103750.0,103740.0,0.80413757]
[1737202784273,2.9e-07,103750.0,103740.0,0.90413757]
[1737202784653,2.9e-07,103750.0,103740.0,0.91380891]
[1737202785247,2.9e-07,103750.0,103740.0,1.44227266]
[1737202786771,2.9e-07,103750.0,103740.0,1.01881488]
[1737202788756,2.9e-07,103750.0,103740.0,0.56181212]
[1737202789118,2.9e-07,103750.0,103740.0,0.54224143]
[1737202790043,2.9e-07,103750.0,103740.0,0.69224143]
[1737202790394,2.9e-07,103750.0,103740.0,0.60680615]
[1737202793078,2.9e-07,103750.0,103740.0,0.71380891]
[1737202793694,2.9e-07,103750.0,103740.0,0.81380891]
[1737202794946,2.9e-07,103750.0,103740.0,0.81470729]
[1737202795357,0.00042809,103750.0,103740.0,0.81470729]
[1737202795952,0.00042809,103750.0,103740.0,0.91470729]
[1737202796236,0.00042809,103750.0,103740.0,0.81470729]
[1737202796383,0.00042809,103750.0,103740.0,0.91470729]
[1737202798567,0.00042809,103750.0,103740.0,1.00014257]
[1737202799361,9e-08,103750.0,103740.0,1.00014257]
[1737202799536,9e-08,103750.0,103740.0,1.10714533]
[1737202799753,0.0004277,103760.0,103750.0,0.598085]
[1737202799953,0.0004277,103760.0,103750.0,0.80437886]
[1737202802704,0.0004277,103760.0,103750.0,0.70437886]
[1737202802936,0.0004277,103760.0,103750.0,0.88981414]
[1737202803130,0.0004277,103760.0,103750.0,0.68981414]
[1737202803332,0.0004277,103760.0,103750.0,0.78981414]
[1737202803842,0.0004277,103760.0,103750.0,0.68281138]
[1737202805275,0.0004277,103760.0,103750.0,0.70200259]
[1737202805760,0.0004277,103760.0,103750.0,0.61656731]
[1737202807335,0.0004277,103760.0,103750.0,0.4704265]
[1737202808987,0.0004277,103760.0,103750.0,0.45123529]
[1737202815668,0.0004277,103760.0,103750.0,0.53667057]
[1737202819092,0.0004277,103760.0,103750.0,0.53756895]
[1737202819579,0.0004277,103760.0,103750.0,0.98156109]
[1737202819999,0.0004277,103760.0,103750.0,0.89976109]
[1737202820299,0.0004277,103760.0,103750.0,0.79976109]
[1737202820544,0.0004277,103760.0,103750.0,0.89976109]
[1737202820941,0.0004277,103760.0,103750.0,0.97846109]
[1737202821143,0.0004277,103760.0,103750.0,1.13256385]
[1737202821465,0.0004277,103760.0,103750.0,0.81717622]
[1737202821688,0.0004277,103760.0,103750.0,0.91641703]
[1737202823129,0.0004277,103760.0,103750.0,0.91631531]
[1737202824335,0.0004277,103760.0,103750.0,1.27474825]
[1737202827231,0.0004277,103760.0,103750.0,1.16774549]
[1737202827404,0.0004277,103760.0,103750.0,1.06774549]
[1737202827601,0.0004277,103760.0,103750.0,1.16774549]
[1737202828006,0.0004277,103760.0,103750.0,1.06850468]
[1737202828376,0.0004277,103760.0,103750.0,1.28228098]
[1737202828986,0.0004277,103760.0,103750.0,1.21218098]
[1737202829482,0.0004277,103760.0,103750.0,1.27791774]
[1737202830433,0.0004277,103760.0,103750.0,1.19921774]
[1737202830630,0.0004277,103760.0,103750.0,1.07103544]
[1737202834726,0.0004277,103760.0,103750.0,1.14983544]
[1737202835339,0.0004277,103760.0,103750.0,0.97103544]
[1737202835516,0.0004277,103760.0,103750.0,1.07103544]
[1737202835921,0.0004277,103760.0,103750.0,0.97103544]
[1737202836119,0.0004277,103760.0,103750.0,1.07103544]
[1737202836930,0.0004277,103760.0,103750.0,1.14983544]
[1737202840186,0.0004277,103760.0,103750.0,1.36361174]
[1737202841444,0.0004277,103760.0,103750.0,1.23189886]
[1737202841640,0.0004277,103760.0,103750.0,1.1248961]
[1737202841817,0.0004277,103760.0,103750.0,1.23189886]
[1737202843245,0.0004277,103760.0,103750.0,1.33189886]
[1737202843447,0.0004277,103760.0,103750.0,1.36159909]
[1737202843982,0.0004277,103760.0,103750.0,1.40454848]
[1737202847776,0.0004277,103760.0,103750.0,1.41078848]
[1737202851255,0.0004277,103760.0,103750.0,1.38108825]
[1737202852466,0.0004277,103760.0,103750.0,1.41075499]
[1737202854412,0.0004277,103760.0,103750.0,1.38108825]
[1737202855362,0.0004277,103760.0,103750.0,1.41074503]
[1737202857948,0.0004277,103760.0,103750.0,1.79053843]
[1737202858335,0.0004277,103760.0,103750.0,1.89053843]
[1737202860271,0.0004277,103760.0,103750.0,1.51074503]
[1737202860628,7e-07,103760.0,103750.0,1.51074503]
[1737202862588,7e-07,103760.0,103750.0,1.63381274]
[1737202862932,0.0004277,103780.0,103770.0,0.475666]
[1737202863258,0.0004277,103780.0,103770.0,0.70490957]
[1737202864384,0.0004277,103780.0,103770.0,1.53270689]
[1737202865540,0.0004277,103780.0,103770.0,1.73970965]
[1737202865747,0.0004277,103780.0,103770.0,1.63270689]
[1737202865946,7e-07,103780.0,103770.0,1.83970965]
[1737202866147,7e-07,103780.0,103770.0,1.84594965]
[1737202866930,7e-07,103780.0,103770.0,1.87555516]
[1737202867164,0.0004276,103800.0,103790.0,0.575648]
[1737202867165,6e-07,103800.0,103790.0,0.575648]
[1737202867366,0.000488,103810.0,103800.0,0.201939]
[1737202867567,0.000488,103810.0,103800.0,0.30838291]
[1737202867772,0.000488,103810.0,103800.0,0.40117981]
[1737202867978,0.000488,103810.0,103800.0,0.219339]
[1737202868399,0.000488,103810.0,103800.0,1.14535019]
[1737202869384,0.000488,103810.0,103800.0,0.82970487]
[1737202869573,0.000488,103810.0,103800.0,0.40381798]
[1737202870854,0.000488,103810.0,103800.0,0.50823286]
[1737202871205,0.000488,103810.0,103800.0,0.4012301]
[1737202872393,0.000488,103810.0,103800.0,0.41065117]
[1737202872612,0.000488,103810.0,103800.0,0.31141036]
[1737202872821,0.000488,103810.0,103800.0,0.33581312]
[1737202873017,0.000488,103810.0,103800.0,0.51375393]
[1737202874951,0.000488,103810.0,103800.0,0.40675117]
[1737202876105,0.000488,103810.0,103800.0,0.56225393]
[1737202878111,0.000488,103810.0,103800.0,0.45525117]
[1737202878429,0.000488,103810.0,103800.0,0.56225393]
[1737202881756,0.000488,103810.0,103800.0,0.71225393]
[1737202882194,0.000488,103810.0,103800.0,0.81225393]
[1737202883391,5.5e-07,103830.0,103820.0,0.35]
[1737202883623,3.5e-07,103840.0,103830.0,0.496511]
[1737202883843,3.5e-07,103840.0,103830.0,0.80975733]
[1737202886246,3.5e-07,103840.0,103830.0,1.33646537]
[1737202886419,3.5e-07,103840.0,103830.0,1.43646537]
[1737202888053,0.13263782,103850.0,103840.0,0.47630476]
[1737202888205,0.13263782,103850.0,103840.0,0.57554557]
[1737202889352,0.13263782,103850.0,103840.0,0.57559586]
[1737202891819,0.13263782,103850.0,103840.0,0.58529444]
[1737202892431,0.13263782,103850.0,103840.0,0.71109444]
[1737202894176,0.00214644,103880.0,103840.0,0.71109444]
[1737202894412,0.60519106,103940.0,103930.0,0.296218]
[1737202894534,0.60519106,103940.0,103930.0,0.73206157]
[1737202894739,0.60519106,103940.0,103930.0,0.63206157]
[1737202895165,0.60519106,103940.0,103930.0,0.29545881]
[1737202895351,0.60519106,103940.0,103930.0,0.44545881]
[1737202895558,0.60519106,103940.0,103930.0,0.55246157]
[1737202895724,0.60519106,103940.0,103930.0,0.44545881]
[1737202895725,0.00050643,103940.0,103930.0,0.44545881]
[1737202895925,0.00050643,103940.0,103930.0,0.55246157]
[1737202896985,0.00050643,103940.0,103930.0,0.57546157]
[1737202897286,0.00050643,103940.0,103930.0,0.66064945]
[1737202898012,0.0165823,103950.0,103940.0,0.219209]
[1737202898211,0.0165823,103950.0,103940.0,0.42550286]
[1737202899657,0.00322947,103980.0,103970.0,0.096181]
[1737202900571,0.09940147,103980.0,103970.0,0.023]
[1737202900707,0.19864228,103980.0,103970.0,0.023]
[1737202901789,0.19864228,103980.0,103970.0,0.119181]
[1737202902107,0.00322947,103980.0,103970.0,0.119181]
[1737202902934,0.39098728,103980.0,103960.0,0.480921]
[1737202903279,0.00322947,103980.0,103970.0,0.119181]
[1737202904897,0.09940147,103980.0,103970.0,0.119181]
[1737202905783,0.00322947,103980.0,103970.0,0.119181]
[1737202906255,0.09940147,103980.0,103970.0,0.119181]
[1737202906491,0.096185,103970.0,103950.0,0.442389]
[1737202906658,0.096185,103970.0,103960.0,0.09619]
[1737202906988,0.096181,103970.0,103960.0,0.11919]
[1737202907231,0.096181,103970.0,103960.0,0.023]
[1737202907489,0.59097957,103970.0,103950.0,0.288594]
[1737202907698,0.68716657,103970.0,103950.0,0.288594]
[1737202907947,0.49479457,103970.0,103950.0,0.480993]
[1737202908196,0.19542781,103970.0,103960.0,0.11919]
[1737202908437,0.30243057,103970.0,103960.0,0.11919]
[1737202908670,0.39876123,103980.0,103960.0,0.311559]
[1737202908934,0.69035704,103980.0,103960.0,0.311559]
[1737202909134,0.49800204,103980.0,103960.0,0.311559]
[1737202909348,0.49800204,103980.0,103960.0,0.50394]
[1737202910570,0.59417904,103980.0,103960.0,0.311559]
[1737202910778,0.30242457,103970.0,103960.0,0.11919]
[1737202911275,0.30242457,103970.0,103960.0,0.023]
[1737202911510,0.0962,103950.0,103940.0,0.09625729]
[1737202911737,0.20320276,103950.0,103940.0,0.02305029]
[1737202911965,0.30244357,103950.0,103940.0,5.029e-05]
[1737202913675,0.30244357,103950.0,103940.0,0.00094741]
[1737202914867,0.55944633,103950.0,103940.0,0.00094741]
[1737202915092,0.56568633,103950.0,103940.0,0.00094741]
[1737202915389,0.59568633,103950.0,103940.0,0.00094741]
[1737202917671,0.60539419,103950.0,103940.0,0.00094741]
[1737202918097,0.59915419,103950.0,103940.0,0.00094741]
[1737202918252,0.70539419,103950.0,103940.0,0.00094741]
[1737202918428,0.60539419,103950.0,103940.0,0.00094741]
[1737202920885,0.50919419,103950.0,103940.0,0.00094741]
[1737202921089,0.60539419,103950.0,103940.0,0.00094741]
[1737202921290,0.73479419,103950.0,103940.0,0.00094741]
[1737202923462,0.66934633,103950.0,103940.0,0.00094741]
[1737202923669,0.68944633,103950.0,103940.0,0.00094741]
[1737202923899,0.58944633,103950.0,103940.0,0.00094741]
[1737202924294,0.58153633,103950.0,103940.0,0.00094741]
[1737202925590,0.42453357,103950.0,103940.0,0.00094741]
[1737202926296,0.42496077,103950.0,103940.0,0.00094741]
[1737202927260,0.53196353,103950.0,103940.0,0.00094741]
[1737202927603,0.58196353,103950.0,103940.0,0.00094741]
[1737202927838,0.66186353,103950.0,103940.0,0.00094741]
[1737202931098,0.66186353,103950.0,103940.0,4.1e-07]
[1737202931099,0.96186353,103950.0,103940.0,4.1e-07]
[1737202931306,1.02082623,103950.0,103940.0,4.1e-07]
[1737202931734,0.20324876,103900.0,103890.0,0.0755]
[1737202932078,0.49499157,103900.0,103890.0,0.00050643]
[1737202935664,0.59499157,103900.0,103890.0,0.00050643]
[1737202937405,0.59499157,103900.0,103890.0,0.00140355]
[1737202941242,0.38798881,103900.0,103890.0,0.07870355]
[1737202941600,0.09924081,103900.0,103890.0,0.39046055]
[1737202941807,0.30248957,103900.0,103890.0,0.39046055]
[1737202942020,0.20624357,103900.0,103890.0,0.39046055]
[1737202942366,0.30248957,103900.0,103890.0,0.39046055]
[1737202943076,0.20624357,103900.0,103890.0,0.39046055]
[1737202943275,0.30248957,103900.0,103890.0,0.39046055]
[1737202943670,0.30248957,103900.0,103890.0,0.00140355]
[1737202946372,0.30248957,103900.0,103890.0,0.09765855]
[1737202947364,0.20624357,103900.0,103890.0,0.09765855]
[1737202948716,0.29946776,103920.0,103890.0,0.02440355]
[1737202948879,0.19547781,103910.0,103900.0,0.288723]
[1737202949091,0.096246,103900.0,103890.0,0.29014955]
[1737202949288,0.30248957,103900.0,103890.0,0.09765155]
[1737202949913,0.29504957,103900.0,103890.0,0.09765155]
[1737202950111,0.29504957,103900.0,103890.0,0.00140355]
[1737202961038,0.29547697,103900.0,103890.0,0.00140355]
[1737202961499,0.09966821,103900.0,103890.0,0.09765855]
[1737202961703,0.19591421,103900.0,103890.0,0.00140355]
[1737202961952,0.30291697,103900.0,103890.0,0.00140355]
[1737202962357,0.19591421,103900.0,103890.0,0.00140355]
[1737202962538,0.30291697,103900.0,103890.0,0.00140355]
[1737202965230,0.40291697,103900.0,103890.0,0.00140355]
[1737202971385,0.19496572,103900.0,103890.0,0.00140355]
[1737202971613,0.39821448,103900.0,103890.0,0.00140355]
[1737202974089,0.39864188,103900.0,103890.0,0.00140355]
[1737202977793,0.48367374,103900.0,103890.0,0.00140355]
[1737202981391,0.38367374,103900.0,103890.0,0.07660355]
[1737202981587,0.42527374,103900.0,103890.0,0.07660355]
[1737202981788,0.42527374,103900.0,103890.0,0.00140355]
[1737202983192,0.55282154,103900.0,103890.0,0.00140355]
[1737202983402,0.6598243,103900.0,103890.0,0.00140355]
[1737202983617,0.55282154,103900.0,103890.0,0.00140355]
[1737202989719,0.55282154,103900.0,103890.0,0.07660355]
[1737202993439,0.72288527,103900.0,103890.0,0.07660355]
[1737202994642,0.93546494,103900.0,103890.0,0.07660355]
[1737202999554,1.0424677,103900.0,103890.0,0.00140355]
[1737202999796,0.93546494,103900.0,103890.0,0.00140355]
[1737203003225,0.82846218,103900.0,103890.0,0.00140355]
[1737203003452,0.93546494,103900.0,103890.0,0.00140355]
[1737203008112,0.72288527,103900.0,103890.0,0.00140355]
[1737203009311,0.93546494,103900.0,103890.0,0.00140355]
[1737203010285,0.85043308,103900.0,103890.0,0.00140355]
[1737203010660,0.85043308,103900.0,103890.0,0.00292355]
[1737203014712,0.95743584,103900.0,103890.0,0.00292355]
[1737203014933,1.10743584,103900.0,103890.0,0.00292355]
[1737203015439,1.1036771,103900.0,103890.0,0.00292355]
[1737203016187,0.9761293,103900.0,103890.0,0.00292355]
[1737203017432,1.11347011,103900.0,103890.0,0.00292355]
[1737203017645,1.16117011,103900.0,103890.0,0.00292355]
[1737203018475,1.46117011,103900.0,103890.0,5.5e-07]
[1737203019120,1.94474495,103900.0,103890.0,5.5e-07]
[1737203019529,1.94823329,103900.0,103890.0,5.5e-07]
[1737203020481,1.08201505,103900.0,103890.0,5.5e-07]
[1737203020898,0.546264,103880.0,103870.0,0.03]
[1737203021150,0.94513993,103880.0,103870.0,0.03]
[1737203023014,0.096292,103850.0,103840.0,0.12579796]
[1737203023246,0.30240037,103850.0,103840.0,0.12579796]
[1737203024218,0.30240037,103850.0,103840.0,0.12584825]
[1737203024821,0.58033328,103850.0,103840.0,0.12584825]
[1737203025199,0.58033328,103850.0,103840.0,0.00094825]
[1737203026219,0.49400037,103850.0,103840.0,0.00094825]
[1737203029624,0.50380667,103850.0,103840.0,0.00094825]
[1737203030311,0.39693911,103850.0,103840.0,0.00094825]
[1737203030534,0.50380667,103850.0,103840.0,0.00094825]
[1737203030744,0.19553281,103850.0,103840.0,0.12584825]
[1737203030946,0.19553281,103850.0,103840.0,0.22215025]
[1737203031543,0.37520091,103860.0,103850.0,0.0798]
[1737203031772,0.38810881,103860.0,103850.0,0.0798]
[1737203032775,0.42970881,103860.0,103850.0,0.0798]
[1737203033326,0.53657637,103860.0,103850.0,0.0798]
[1737203033521,0.54610958,103860.0,103850.0,0.0798]
[1737203037580,0.43924202,103860.0,103850.0,0.0798]
[1737203040509,0.58924202,103860.0,103850.0,0.0798]
[1737203042131,0.57970881,103860.0,103850.0,0.0798]
[1737203043228,0.09924081,103860.0,103850.0,0.176092]
[1737203043404,0.09924081,103860.0,103850.0,0.224992]
[1737203043606,0.19552381,103860.0,103850.0,0.224992]
[1737203044212,0.44901258,103870.0,103860.0,0.0783]
[1737203044419,0.53850091,103870.0,103860.0,0.0783]
[1737203045506,0.34595091,103870.0,103860.0,0.0783]
[1737203047105,0.45281847,103870.0,103860.0,0.0783]
[1737203047325,0.41604987,103870.0,103860.0,0.0783]
[1737203047584,0.41307659,103870.0,103860.0,0.0783]
[1737203048251,0.45467659,103870.0,103860.0,0.0783]
[1737203050020,0.41307659,103870.0,103860.0,0.0783]
[1737203051301,0.45467659,103870.0,103860.0,0.0783]
[1737203051501,0.41307659,103870.0,103860.0,0.0783]
[1737203052046,0.45467659,103870.0,103860.0,0.0783]
[1737203052949,0.096283,103860.0,103850.0,0.13203219]
[1737203053152,0.33572173,103860.0,103850.0,0.13203219]
[1737203054154,0.33572173,103860.0,103850.0,0.12489901]
[1737203054356,0.33572173,103860.0,103850.0,0.00089901]
[1737203054988,0.52732173,103860.0,103850.0,0.00089901]
[1737203055970,0.61365464,103860.0,103850.0,0.00089901]
[1737203056869,0.62306644,103860.0,103850.0,0.00089901]
[1737203057083,0.49513353,103860.0,103850.0,0.00089901]
[1737203058450,0.71096581,103860.0,103850.0,0.00089901]
[1737203058656,0.78106477,103860.0,103850.0,0.00089901]
[1737203058896,0.71096581,103860.0,103850.0,0.00089901]
[1737203059093,0.78106477,103860.0,103850.0,0.00089901]
[1737203059308,0.88030558,103860.0,103850.0,0.00089901]
[1737203059613,0.92640558,103860.0,103850.0,0.00089901]
[1737203059794,1.31490369,103860.0,103850.0,0.00089901]
[1737203060386,1.21566288,103860.0,103850.0,0.00089901]
[1737203060795,0.82716477,103860.0,103850.0,0.00089901]
[1737203061620,0.246302,103840.0,103830.0,0.14934396]
[1737203061830,0.48574073,103840.0,103830.0,0.14934396]
[1737203063038,0.41564177,103840.0,103830.0,0.14934396]
[1737203063455,0.45242509,103840.0,103830.0,0.14934396]
[1737203065168,0.53882341,103840.0,103830.0,0.14934396]
[1737203068485,0.58042341,103840.0,103830.0,0.14934396]
[1737203069306,0.59015377,103840.0,103830.0,0.14934396]
[1737203070450,0.50375545,103840.0,103830.0,0.14934396]
[1737203071049,0.51516701,103840.0,103830.0,0.14934396]
[1737203071406,0.51516701,103840.0,103830.0,0.15024297]
[1737203071608,0.50375545,103840.0,103830.0,0.15024297]
[1737203073464,0.59015377,103840.0,103830.0,0.15024297]
[1737203077746,0.59015377,103840.0,103830.0,0.10234297]
[1737203079047,0.71975125,103840.0,103830.0,0.10234297]
[1737203082519,0.71975125,103840.0,103830.0,0.07599901]
[1737203083006,0.72017955,103840.0,103830.0,0.07599901]
[1737203085372,0.75359485,103840.0,103830.0,0.07599901]
[1737203085771,0.62399737,103840.0,103830.0,0.07599901]
[1737203091669,0.75359485,103840.0,103830.0,0.07599901]
[1737203094595,1.14238729,103840.0,103830.0,0.07599901]
[1737203096169,1.14238729,103840.0,103830.0,0.00089901]
[1737203096313,1.2416281,103840.0,103830.0,0.00089901]
[1737203096519,1.14238729,103840.0,103830.0,0.00089901]
[1737203097538,1.08453776,103840.0,103830.0,0.00089901]
[1737203097763,1.01438897,103840.0,103830.0,0.00089901]
[1737203098637,1.08453776,103840.0,103830.0,0.00089901]
[1737203099170,1.04127071,103840.0,103830.0,0.00089901]
[1737203099382,1.14051152,103840.0,103830.0,0.00089901]
[1737203099634,1.04127071,103840.0,103830.0,0.00089901]
[1737203100841,0.82527491,103840.0,103830.0,0.00089901]
[1737203101630,0.84406196,103840.0,103830.0,0.00089901]
[1737203104704,1.32372543,103840.0,103830.0,0.00089901]
[1737203104856,1.37202543,103840.0,103830.0,0.00089901]
[1737203105055,1.54776624,103840.0,103830.0,0.00089901]
[1737203105875,1.54776624,103840.0,103830.0,1e-08]
[1737203107374,0.096329,103810.0,103800.0,0.11059838]